bitfinex-derivatives/quotes_ETHF0:USTF0_20241231
["timestamp","ask_amount","ask_price","bid_price","bid_amount"]
[1735622830470,0.29946,3344.1,3343.9,0.29948]
[1735622830670,0.29946,3344.1,3343.7,0.9568]
[1735622830860,0.29946,3344.2,3343.9,0.29948]
[1735622831468,0.29946,3344.1,3344.0,0.9005]
[1735622833368,0.9592,3344.5,3344.0,0.9005]
[1735622833566,0.29944,3344.4,3344.1,0.29946]
[1735622833873,0.29946,3344.2,3344.0,0.9005]
[1735622834767,0.29946,3344.1,3344.0,0.9005]
[1735622839470,3.22738247,3344.5,3344.0,0.9005]
[1735622839676,0.29946,3344.2,3344.0,0.9005]
[1735622840069,0.29946,3344.1,3344.0,0.9005]
[1735622840570,0.9592,3344.5,3344.0,0.9005]
[1735622840973,1.25863,3344.5,3344.3,0.29944]
[1735622842076,3.51508775,3344.6,3344.1,0.9139]
[1735622842374,3.51508775,3344.6,3344.4,0.29943]
[1735622842574,3.51508775,3344.6,3344.5,0.9337]
[1735622842775,4.40431,3344.7,3344.5,1.8956]
[1735622843170,0.29942,3344.6,3344.5,1.8956]
[1735622847373,0.29944,3344.3,3344.2,4.67571495]
[1735622847978,0.29944,3344.3,3344.2,10.12172324]
[1735622848179,0.29944,3344.4,3344.2,10.12172324]
[1735622848482,1.26253,3344.5,3344.2,10.42117324]
[1735622848777,0.29944,3344.3,3344.2,10.12172324]
[1735622848978,0.29944,3344.3,3344.2,4.67571495]
[1735622849179,0.9631,3344.5,3344.2,4.67571495]
[1735622849379,0.29944,3344.4,3344.2,4.67571495]
[1735622850177,0.29944,3344.4,3344.3,4.67571495]
[1735622853781,3.50724,3344.4,3344.3,4.67571495]
[1735622853987,0.29945,3344.2,3344.1,4.67571495]
[1735622856888,0.29947,3344.0,3343.9,4.67571495]
[1735622857087,1.13147,3344.1,3343.9,4.67571495]
[1735622857784,0.29947,3344.0,3343.9,4.67571495]
[1735622857985,1.20577,3344.0,3343.9,4.67571495]
[1735622858585,2.09667,3344.0,3343.9,4.67571495]
[1735622859386,2.09667,3344.0,3343.7,4.67571495]
[1735622859387,5.31228775,3344.0,3343.7,4.67571495]
[1735622859683,0.29949,3343.8,3343.7,4.67571495]
[1735622869790,0.29949,3343.8,3343.6,5.53331495]
[1735622870189,1.37496193,3343.8,3343.6,5.53331495]
[1735622870489,1.07547193,3343.8,3343.6,5.53331495]
[1735622870693,0.2995,3343.7,3343.6,5.53331495]
[1735622870993,0.2995,3343.7,3343.6,4.67571495]
[1735622872588,0.29953,3343.4,3343.3,0.8816]
[1735622872995,1.37500193,3343.4,3343.3,0.8816]
[1735622874090,1.37500193,3343.4,3343.3,5.55731495]
[1735622874289,0.29953,3343.4,3343.3,5.55731495]
[1735622875192,0.29953,3343.4,3343.3,0.8816]
[1735622877698,2.57200193,3343.4,3343.3,0.8816]
[1735622877893,0.29953,3343.3,3343.2,4.67571495]
[1735622878096,1.14473,3343.3,3343.2,4.67571495]
[1735622878296,2.00433,3343.3,3343.2,4.67571495]
[1735622878501,0.29954,3343.2,3343.1,4.1149]
[1735622879792,0.29954,3343.2,3343.1,3.2078]
[1735622881192,0.29954,3343.2,3343.0,0.8771]
[1735622881999,0.29955,3343.1,3343.0,0.8771]
[1735622883696,2.57202193,3343.1,3343.0,0.8771]
[1735622883890,2.27247193,3343.1,3342.7,4.67571495]
[1735622884099,0.29958,3342.8,3342.7,5.49181495]
[1735622884698,0.29958,3342.8,3342.7,0.8161]
[1735622890107,2.27247193,3343.1,3342.7,0.8161]
[1735622890504,0.29957,3342.9,3342.7,0.8161]
[1735622891004,0.29958,3342.8,3342.7,0.8161]
[1735622900620,1.07607483,3342.9,3342.5,3.2078]
[1735622900823,0.2996,3342.6,3342.5,3.2078]
[1735622902515,0.2996,3342.6,3342.3,5.53471495]
[1735622902516,0.29962,3342.4,3342.3,5.53471495]
[1735622902817,1.37569483,3342.4,3342.3,5.53471495]
[1735622904619,1.37569483,3342.4,3342.3,0.859]
[1735622908522,1.37312811,3342.4,3342.3,0.859]
[1735622909823,2.34612715,3342.9,3342.3,0.859]
[1735622910123,2.34612715,3342.9,3342.8,3.50738]
[1735622910523,2.34612715,3342.9,3342.8,46.82628]
[1735622911027,2.35037365,3343.8,3342.8,65.09128918]
[1735622911328,3.42644848,3343.8,3343.7,0.2995]
[1735622912026,1.07607483,3343.8,3343.7,0.2995]
[1735622912227,0.29948,3344.0,3343.7,0.2995]
[1735622912828,0.29951,3343.7,3343.5,4.69827865]
[1735622913232,0.8352,3343.6,3343.5,4.69827865]
[1735622913627,1.13471,3343.6,3343.5,4.69827865]
[1735622913827,0.8352,3343.6,3343.5,4.69827865]
[1735622914026,0.29948,3343.9,3343.6,0.2995]
[1735622914324,0.29949,3343.8,3343.5,5.87048865]
[1735622914728,0.29948,3343.9,3343.6,0.29951]
[1735622915428,0.29948,3343.9,3343.5,5.57097865]
[1735622915429,3.10702354,3344.1,3343.5,5.57097865]
[1735622915625,0.29949,3343.8,3343.5,5.87048865]
[1735622916429,3.10702354,3344.1,3343.5,5.57097865]
[1735622916626,0.29948,3343.9,3343.6,0.2995]
[1735622918628,0.29948,3344.0,3343.6,0.2995]
[1735622918828,0.29948,3344.0,3343.7,0.2995]
[1735622919724,0.29948,3344.0,3343.6,0.2995]
[1735622919925,0.29947,3344.0,3343.6,0.2995]
[1735622922529,0.29947,3344.0,3343.7,0.2995]
[1735622922828,1.11127,3344.0,3343.7,0.2995]
[1735622925326,1.11127,3344.0,3343.5,0.8727]
[1735622925327,0.8118,3344.0,3343.5,0.8727]
[1735622925527,0.8352,3344.1,3343.5,0.8727]
[1735622925730,0.8352,3344.1,3344.0,0.29947]
[1735622929734,3.2078,3344.4,3343.6,6.97010219]
[1735622929930,4.066,3344.4,3344.2,0.29945]
[1735622930235,4.066,3344.4,3344.3,0.29944]
[1735622933139,4.066,3344.4,3343.9,40.8]
[1735622933339,0.29945,3344.3,3344.1,0.29946]
[1735622933640,4.36544,3344.4,3344.1,0.29946]
[1735622934237,4.36544,3344.4,3343.8,4.69827865]
[1735622934238,2.27182354,3344.2,3343.8,4.69827865]
[1735622934633,0.8235,3344.1,3343.8,4.69827865]
[1735622934836,1.12296,3344.1,3343.8,0.29949]
[1735622935631,0.8235,3344.1,3343.9,0.29948]
[1735622935836,0.8235,3344.1,3343.7,4.69827865]
[1735622936043,0.8235,3344.1,3343.9,0.29948]
[1735622936544,0.8235,3344.1,3343.4,3.2078]
[1735622936545,0.8235,3344.1,3344.0,0.29947]
[1735622936739,0.8582,3344.4,3344.3,0.29944]
[1735622936946,1.6611,3344.4,3344.3,0.29944]
[1735622938547,1.6611,3344.4,3344.2,0.29945]
[1735622938740,1.6611,3344.4,3344.3,0.29944]
[1735622939745,1.6611,3344.4,3343.9,0.7888]
[1735622939948,1.6611,3344.4,3344.2,0.29945]
[1735622940542,1.6611,3344.4,3343.8,3.2078]
[1735622940742,1.96054,3344.4,3344.0,0.29947]
[1735622942040,0.29945,3344.2,3343.9,0.29948]
[1735622944038,1.6611,3344.4,3343.8,3.2078]
[1735622944244,1.96054,3344.4,3344.1,0.29946]
[1735622944551,0.29945,3344.3,3343.9,0.29948]
[1735622945345,1.6611,3344.4,3343.9,0.29948]
[1735622945346,0.29945,3344.2,3343.9,0.29948]
[1735622946644,1.6611,3344.4,3343.9,0.29948]
[1735622946841,0.29945,3344.2,3343.9,0.29948]
[1735622949251,0.29945,3344.2,3344.0,0.29947]
[1735622949447,1.07517475,3344.3,3344.0,0.29947]
[1735622949647,1.37462475,3344.3,3344.0,0.29947]
[1735622950050,1.07517475,3344.3,3343.7,1.07517475]
[1735622950252,0.29946,3344.2,3343.9,0.29947]
[1735622950552,1.07517475,3344.3,3343.6,4.69827865]
[1735622950553,0.29947,3344.1,3343.8,0.29949]
[1735622950850,1.37464475,3344.1,3343.8,0.29949]
[1735622952348,1.07517475,3344.1,3343.5,5.88627865]
[1735622952550,1.07517475,3343.7,3343.5,7.04224081]
[1735622952747,2.55761,3343.6,3343.5,7.04224081]
[1735622954250,2.55761,3343.6,3343.2,4.69753884]
[1735622954452,2.55761,3343.6,3343.4,0.29952]
[1735622954647,2.2581,3343.6,3343.3,0.29953]
[1735622954846,0.29952,3343.5,3343.3,0.29953]
[1735622956846,0.29952,3343.5,3343.4,4.69753884]
[1735622957657,2.2581,3343.6,3343.4,4.69753884]
[1735622957857,0.7443,3343.6,3343.5,0.29952]
[1735622958054,0.7443,3343.6,3343.5,1.07382]
[1735622958554,4.68715383,3344.0,3343.5,0.7743]
[1735622958756,4.68715383,3344.0,3343.9,0.29948]
[1735622958956,0.7907,3344.5,3343.8,3.2078]
[1735622959153,3.50724,3344.4,3344.1,0.29946]
[1735622959457,3.2078,3344.4,3344.2,0.29945]
[1735622959655,0.7907,3344.5,3344.3,4.6979294]
[1735622959962,1.09013,3344.5,3344.3,4.6979294]
[1735622960647,0.29944,3344.4,3344.3,4.6979294]
[1735622961954,2.57172308,3344.4,3344.3,4.6979294]
[1735622962156,2.57172308,3344.4,3344.2,7.04689411]
[1735622962157,0.29944,3344.3,3344.2,3.4587294]
[1735622962357,0.29944,3344.3,3344.2,0.9805294]
[1735622963253,5.48008308,3344.4,3343.7,7.34639411]
[1735622963457,0.29947,3344.1,3343.7,7.34639411]
[1735622963653,0.7928,3344.0,3343.7,7.34639411]
[1735622964459,0.7928,3344.0,3343.6,7.04689411]
[1735622964658,1.09228,3344.0,3343.6,7.34639411]
[1735622965260,0.7928,3344.0,3343.6,7.04689411]
[1735622965450,0.2995,3343.7,3343.6,7.04689411]
[1735622967057,0.2995,3343.7,3343.3,7.04689411]
[1735622967261,0.29951,3343.6,3343.3,7.04689411]
[1735622969460,0.29953,3343.4,3343.3,7.04689411]
[1735622969661,2.27228308,3343.8,3343.3,7.04689411]
[1735622969957,0.29952,3343.5,3343.2,7.34643411]
[1735622970361,0.29951,3343.6,3343.2,7.34643411]
[1735622970967,2.27228308,3343.8,3343.2,7.04689411]
[1735622971258,0.29951,3343.6,3343.3,0.29953]
[1735622971465,0.2995,3343.7,3343.4,0.29952]
[1735622971659,1.5436,3343.9,3343.3,0.7471]
[1735622971858,1.84308,3343.9,3343.6,0.2995]
[1735622972160,0.29949,3343.8,3343.7,0.7836]
[1735622973263,1.5436,3343.9,3343.7,0.7836]
[1735622973468,1.84309,3343.9,3343.7,0.7836]
[1735622974662,0.29949,3343.8,3343.7,0.7836]
[1735622975963,1.84308,3343.9,3343.7,0.7836]
[1735622977365,1.09198,3343.9,3343.7,0.7836]
[1735622979276,0.29949,3343.8,3343.7,0.7836]
[1735622983972,0.7925,3343.9,3343.4,8.11521411]
[1735622984280,0.2995,3343.7,3343.4,1.85462]
[1735622985075,0.29951,3343.6,3343.4,0.7863]
[1735622986277,0.29951,3343.6,3343.3,8.09352411]
[1735622986278,0.29953,3343.4,3343.3,7.79399411]
[1735622986581,0.29953,3343.4,3343.3,7.04689411]
[1735622986975,1.12383,3343.4,3343.3,7.04689411]
[1735622987882,3.2078,3343.6,3343.1,7.79479411]
[1735622987883,3.50731,3343.6,3343.1,7.79479411]
[1735622988582,0.29951,3343.6,3343.3,0.29953]
[1735622989282,0.29951,3343.6,3343.3,7.34642411]
[1735622990381,0.29952,3343.5,3343.4,5.51631884]
[1735622990584,0.29951,3343.6,3343.4,5.51631884]
[1735622991375,0.29951,3343.6,3343.4,0.29952]
[1735622991580,0.29949,3343.8,3343.5,1.89322]
[1735622991780,1.5928,3343.9,3343.5,1.89322]
[1735622991980,0.2995,3343.7,3343.5,1.5937]
[1735622995187,5.1220302,3343.9,3343.5,1.5937]
[1735622995484,0.29951,3343.6,3343.5,1.5937]
[1735622996282,0.2995,3343.7,3343.5,1.5937]
[1735622996585,5.1220302,3343.9,3343.5,1.5937]
[1735622996586,0.29951,3343.6,3343.5,1.5937]
[1735622999885,0.2995,3343.7,3343.5,1.5937]
[1735623000091,0.2995,3343.7,3343.5,1.89322]
[1735623000787,0.2995,3343.8,3343.5,1.89322]
[1735623000984,0.2995,3343.7,3343.5,1.5937]
[1735623001190,0.29951,3343.6,3343.5,1.5937]
[1735623001487,0.29951,3343.6,3343.5,8.64059411]
[1735623002389,0.29951,3343.6,3343.5,7.04689411]
[1735623002686,0.29952,3343.5,3343.4,7.04689411]
[1735623002881,0.99912,3343.5,3343.4,7.04689411]
[1735623003881,0.99912,3343.5,3343.1,7.04689411]
[1735623003882,0.6996,3343.5,3343.1,7.04689411]
[1735623004087,0.29954,3343.2,3343.1,7.04689411]
[1735623004887,0.29954,3343.3,3343.1,7.34644411]
[1735623005078,1.74843,3343.4,3343.1,7.04689411]
[1735623005281,3.8287402,3343.6,3343.3,0.29953]
[1735623005478,3.5292302,3343.5,3343.3,0.29953]
[1735623005687,3.5292302,3343.5,3343.4,0.29953]
[1735623006683,0.6938,3343.7,3343.5,0.29951]
[1735623006988,0.9933,3343.7,3343.5,0.29951]
[1735623007384,3.5292302,3343.8,3343.4,5.5176139]
[1735623007579,3.8287202,3343.8,3343.5,0.29951]
[1735623007788,3.5292302,3343.9,3343.7,0.2995]
[1735623007978,3.5292302,3343.9,3343.8,4.91399]
[1735623008483,3.5292302,3343.9,3343.8,45.71399]
[1735623008884,5.85847959,3344.2,3343.8,45.71399]
[1735623008885,3.53439971,3344.4,3344.3,0.29944]
[1735623010595,0.2994,3344.8,3344.3,16.55081611]
[1735623010795,0.2994,3344.8,3344.5,0.29943]
[1735623011793,0.2994,3344.8,3344.6,12.55119227]
[1735623012889,5.48008308,3345.0,3344.6,12.55119227]
[1735623013190,0.29942,3344.7,3344.5,7.03425357]
[1735623013394,0.29942,3344.6,3344.5,7.03425357]
[1735623013599,1.05722,3344.6,3344.5,5.87965357]
[1735623013892,4.26502,3344.6,3344.5,0.85585357]
[1735623014195,0.29944,3344.4,3344.3,9.37900476]
[1735623014384,0.29944,3344.4,3343.6,14.7497127]
[1735623014385,2.27228308,3344.4,3343.6,0.6932]
[1735623014593,2.27228308,3343.9,3343.4,8.22440476]
[1735623014788,0.29951,3343.6,3343.4,8.22440476]
[1735623015291,0.29952,3343.5,3343.4,8.22440476]
[1735623015595,0.29952,3343.5,3343.3,0.6932]
[1735623016490,0.29953,3343.4,3343.3,0.6932]
[1735623018290,0.29952,3343.5,3343.3,0.6932]
[1735623018691,0.29953,3343.4,3343.3,0.6932]
[1735623019196,0.29952,3343.5,3343.3,0.6932]
[1735623019594,5.48008308,3343.6,3342.8,4.3958]
[1735623019797,5.48008308,3343.6,3342.9,0.693]
[1735623020097,0.29954,3343.2,3342.9,0.99257]
[1735623020296,5.48008308,3343.6,3342.9,0.99257]
[1735623020597,0.29955,3343.2,3342.9,0.99257]
[1735623020893,0.29956,3343.0,3342.9,0.693]
[1735623022099,0.29956,3343.1,3342.9,0.693]
[1735623023296,1.80855,3343.2,3342.9,0.99257]
[1735623023697,0.29955,3343.1,3342.9,0.693]
[1735623024498,0.7664,3343.2,3342.9,0.693]
[1735623024801,1.06595,3343.2,3342.9,0.99257]
[1735623025298,0.29955,3343.1,3342.9,0.693]
[1735623025493,1.06595,3343.2,3343.0,40.8]
[1735623026101,0.7664,3343.2,3343.0,40.8]
[1735623026295,1.06594,3343.2,3343.0,40.8]
[1735623026603,0.7664,3343.2,3343.0,40.8]
[1735623026902,0.7664,3343.2,3342.9,0.99257]
[1735623027404,3.2078,3343.6,3343.4,0.29952]
[1735623027697,3.2078,3343.6,3343.0,40.8]
[1735623027698,3.2078,3343.6,3343.3,0.29953]
[1735623027900,0.29953,3343.4,3343.1,0.29955]
[1735623028503,3.2078,3343.6,3343.0,40.8]
[1735623028705,3.2078,3343.6,3343.5,0.29952]
[1735623030101,3.9206,3344.0,3343.2,3.2078]
[1735623030404,3.9206,3344.0,3343.4,0.29952]
[1735623030701,4.22008,3344.0,3343.7,0.29949]
[1735623030900,4.22008,3344.0,3343.8,1.4502]
[1735623031101,3.9206,3344.0,3343.8,1.4502]
[1735623031295,0.29948,3343.9,3343.8,1.4502]
[1735623031501,0.29948,3343.9,3343.8,0.7011]
[1735623031697,0.29948,3343.9,3343.5,0.29951]
[1735623031698,0.29949,3343.8,3343.5,0.29951]
[1735623031997,3.9206,3344.0,3343.3,1.4502]
[1735623032199,0.29949,3343.9,3343.6,0.2995]
[1735623032400,4.22007,3344.0,3343.7,0.29949]
[1735623033198,3.9206,3344.0,3343.3,1.4502]
[1735623033397,0.29949,3343.8,3343.3,1.4502]
[1735623033592,0.29949,3343.8,3343.5,0.29952]
[1735623034603,0.2995,3343.7,3343.4,0.29952]
[1735623034995,0.2995,3343.7,3343.3,1.4502]
[1735623035200,0.29949,3343.8,3343.5,0.29952]
[1735623036105,0.29948,3343.9,3343.6,0.2995]
[1735623036293,3.9206,3344.0,3343.4,0.29952]
[1735623036499,0.29951,3343.7,3343.4,0.29952]
[1735623036704,0.29951,3343.6,3343.4,0.29952]
[1735623037706,0.29951,3343.6,3343.3,1.74973]
[1735623038105,0.29951,3343.7,3343.4,0.29952]
[1735623038404,4.22008,3344.0,3343.3,1.4502]
[1735623038611,3.2078,3344.0,3343.3,1.4502]
[1735623038803,3.2078,3344.0,3343.8,0.29948]
[1735623039010,3.2078,3344.0,3343.9,1.4567]
[1735623039311,3.2078,3344.0,3343.9,1.75618]
[1735623039706,3.2078,3344.0,3343.9,42.55618]
[1735623040708,0.29943,3344.5,3343.9,4.6645]
[1735623041011,2.64909753,3344.6,3344.3,0.29944]
[1735623041310,2.64909753,3344.6,3344.4,0.7122]
[1735623041904,2.34967753,3344.6,3344.4,1.01163]
[1735623042100,1.03421,3344.8,3344.5,0.29943]
[1735623042101,3.38388753,3344.8,3344.5,0.29943]
[1735623042306,2.34967753,3344.8,3344.6,0.29941]
[1735623042500,2.34967753,3344.8,3344.7,1.00711]
[1735623043111,2.34967753,3344.8,3344.7,0.7077]
[1735623043619,0.2994,3344.8,3344.7,0.7077]
[1735623043807,0.2994,3344.8,3344.4,0.7122]
[1735623044111,0.29942,3344.6,3344.4,0.7122]
[1735623045008,0.7325,3344.7,3344.4,1.01163]
[1735623045206,1.03191,3344.7,3344.4,1.01163]
[1735623045909,3.5072,3344.9,3344.6,0.29941]
[1735623046109,3.5072,3344.9,3344.7,0.7119]
[1735623046410,3.2078,3344.9,3344.7,1.01131]
[1735623046611,3.5072,3344.9,3344.7,0.7119]
[1735623047005,0.2994,3344.8,3344.7,0.7119]
[1735623047708,3.9526,3344.9,3344.7,0.7119]
[1735623047912,4.252,3344.9,3344.7,0.7119]
[1735623050415,0.2994,3344.8,3344.7,0.7119]
[1735623050714,3.2078,3344.9,3344.7,0.7119]
[1735623050916,3.2078,3344.9,3344.8,0.2994]
[1735623052009,3.2078,3344.9,3344.7,1.0113]
[1735623052314,3.2078,3344.9,3344.8,0.2994]
[1735623052516,3.2078,3344.9,3344.8,1.0061]
[1735623052710,0.742,3345.3,3345.2,0.29936]
[1735623052910,5.55747753,3345.7,3345.4,0.29934]
[1735623052911,5.85679753,3345.7,3345.4,0.29934]
[1735623053212,5.85679753,3345.7,3345.5,1.4394]
[1735623053615,5.55747753,3345.7,3345.5,1.4394]
[1735623053816,5.55747753,3345.7,3345.5,1.73873]
[1735623054204,2.34967753,3345.7,3345.5,1.73873]
[1735623054416,3.01428308,3345.9,3345.5,1.73873]
[1735623054612,3.31358308,3345.9,3345.5,1.73873]
[1735623055107,3.9054,3346.1,3345.5,1.4394]
[1735623055108,3.2078,3346.1,3345.5,1.4394]
[1735623055308,0.29932,3345.8,3345.5,1.73873]
[1735623055713,0.29931,3345.9,3345.5,1.73873]
[1735623056104,0.29931,3345.9,3345.5,1.4394]
[1735623056307,3.2078,3346.1,3345.6,0.29932]
[1735623056308,0.2993,3346.0,3345.6,0.29932]
[1735623056805,3.2078,3346.1,3345.6,0.29932]
[1735623057113,0.29931,3345.8,3345.5,1.4394]
[1735623057515,0.29933,3345.7,3345.5,1.4394]
[1735623057714,1.01833,3345.7,3345.5,1.4394]
[1735623058914,0.719,3345.7,3345.5,1.4394]
[1735623059112,0.29933,3345.6,3345.5,1.4394]
[1735623060213,0.29933,3345.6,3345.3,3.2078]
[1735623060214,0.29935,3345.4,3345.3,3.2078]
[1735623060414,3.2078,3345.5,3345.0,1.4388]
[1735623060618,0.29936,3345.3,3345.0,1.4388]
[1735623061321,3.50714,3345.5,3345.0,1.4388]
[1735623061515,3.50714,3345.5,3345.2,0.29936]
[1735623062318,3.2078,3345.5,3345.3,0.29936]
[1735623062516,3.2078,3345.5,3345.4,0.29935]
[1735623064723,0.29933,3345.6,3345.4,0.29935]
[1735623064918,0.29932,3345.8,3345.5,0.29933]
[1735623065221,0.7127,3346.0,3345.6,1.4884]
[1735623065425,1.012,3346.0,3345.7,0.29931]
[1735623065616,1.012,3346.0,3345.6,1.4884]
[1735623065921,1.012,3346.0,3345.8,0.29931]
[1735623066115,1.012,3346.0,3345.6,1.4884]
[1735623066116,3.2078,3346.1,3346.0,0.29929]
[1735623066517,3.50708,3346.1,3345.9,0.2993]
[1735623067321,3.50708,3346.1,3345.8,0.29931]
[1735623067525,3.2078,3346.1,3345.7,0.29932]
[1735623067721,0.29931,3345.9,3345.7,0.29932]
[1735623068024,1.0206,3346.0,3345.6,1.4884]
[1735623068218,1.0206,3346.0,3345.7,0.29931]
[1735623068817,0.7213,3346.0,3345.7,0.29931]
[1735623069024,1.0206,3346.0,3345.8,0.29931]
[1735623070713,0.7213,3346.0,3345.8,0.29931]
[1735623070921,0.7213,3346.0,3345.6,1.4884]
[1735623071125,0.7213,3346.0,3345.9,0.2993]
[1735623071325,3.50709,3346.1,3345.9,0.2993]
[1735623072025,3.2078,3346.1,3345.6,1.4884]
[1735623072323,3.2078,3346.1,3346.0,0.29929]
[1735623073822,3.50708,3346.1,3345.9,0.2993]
[1735623074421,3.2078,3346.1,3345.6,1.4884]
[1735623074622,3.2078,3346.1,3346.0,0.29929]
[1735623074918,0.29928,3346.2,3346.0,0.29929]
[1735623075117,0.29929,3346.1,3345.9,0.2993]
[1735623075513,0.29932,3345.7,3345.6,0.7182]
[1735623075724,0.29933,3345.6,3345.4,0.29935]
[1735623075914,0.29933,3345.6,3345.3,3.50715]
[1735623076119,0.29933,3345.7,3345.4,0.29934]
[1735623076817,0.29933,3345.6,3345.3,3.2078]
[1735623077018,0.29933,3345.6,3345.4,0.29934]
[1735623077323,1.4882,3345.9,3345.3,3.2078]
[1735623077523,0.7276,3345.9,3345.8,0.29931]
[1735623077819,3.2078,3346.2,3346.1,0.29928]
[1735623078218,3.50707,3346.2,3346.0,0.29929]
[1735623078423,0.29927,3346.2,3346.1,1.5282]
[1735623078626,0.29927,3346.3,3346.1,1.82748]
[1735623078925,0.29926,3346.4,3346.1,1.82748]
[1735623079328,1.494,3346.6,3346.1,1.5282]
[1735623079529,1.494,3346.6,3346.2,0.29927]
[1735623079729,0.29925,3346.5,3346.2,0.29927]
[1735623080230,0.29925,3346.5,3346.3,0.29927]
[1735623080529,1.494,3346.6,3346.1,1.5282]
[1735623080722,0.29927,3346.3,3346.1,1.5282]
[1735623080919,0.29927,3346.2,3346.1,1.5282]
[1735623081122,0.29927,3346.3,3346.1,1.5282]
[1735623082225,3.2078,3346.4,3346.1,1.5282]
[1735623082428,3.2078,3346.4,3345.8,0.7617]
[1735623082429,5.48008308,3346.4,3345.7,3.2078]
[1735623082627,0.29929,3346.1,3345.8,0.29931]
[1735623083028,0.7512,3346.0,3345.7,3.2078]
[1735623083224,2.57159308,3345.8,3345.5,0.29933]
[1735623083430,0.29935,3345.4,3345.2,7.86987456]
[1735623083629,0.29936,3345.3,3345.2,4.66207456]
[1735623083931,2.56376,3345.3,3345.2,4.66207456]
[1735623084826,2.2644,3345.3,3344.6,5.00031]
[1735623085033,0.29939,3345.0,3344.6,4.7009]
[1735623085226,0.29936,3345.2,3344.6,5.00032]
[1735623085429,0.29939,3344.9,3344.6,5.00032]
[1735623085729,0.29939,3345.0,3344.7,0.29941]
[1735623086324,0.29939,3344.9,3344.6,5.00031]
[1735623086525,0.29939,3344.9,3344.6,4.7009]
[1735623086730,0.29939,3344.9,3344.7,0.29941]
[1735623087829,0.29939,3345.0,3344.7,0.29941]
[1735623088030,2.2644,3345.3,3344.7,0.29941]
[1735623088320,0.29939,3345.0,3344.7,0.29941]
[1735623088521,0.7512,3345.3,3344.6,4.7009]
[1735623088722,0.29937,3345.1,3344.8,0.2994]
[1735623089427,0.29937,3345.1,3344.9,40.8]
[1735623090127,0.29937,3345.2,3345.0,0.29938]
[1735623090533,3.2078,3345.4,3344.9,40.8]
[1735623090832,2.34967753,3345.6,3345.0,3.2078]
[1735623091034,2.34967753,3345.6,3345.1,0.7863]
[1735623091339,2.34967753,3345.6,3345.4,0.29934]
[1735623091826,2.34967753,3345.6,3345.5,0.29934]
[1735623092223,4.24846253,3345.8,3345.5,0.29934]
[1735623092224,1.04051,3345.8,3345.5,0.29934]
[1735623092830,1.04051,3345.8,3345.2,1.542]
[1735623092831,0.7412,3345.8,3345.2,1.542]
[1735623093034,0.29937,3345.2,3345.0,4.66207456]
[1735623093328,0.29937,3345.1,3345.0,6.98523129]
[1735623094535,0.741,3345.2,3344.9,0.7337]
[1735623094734,0.29938,3345.0,3344.9,0.7337]
[1735623095248,0.29941,3344.7,3344.6,3.2078]
[1735623096437,3.2078,3344.7,3344.4,4.67624899]
[1735623096638,0.29943,3344.5,3344.4,4.67624899]
[1735623097650,0.29943,3344.5,3344.2,0.29945]
[1735623098148,3.50722,3344.7,3344.4,0.29943]
[1735623098548,3.2078,3344.7,3344.0,1.5725]
[1735623098852,3.2078,3344.7,3344.6,0.29942]
[1735623100846,3.2078,3344.7,3344.6,41.09942]
[1735623104043,3.2078,3344.7,3344.6,0.29942]
[1735623104247,3.50721,3344.7,3344.4,1.08083]
[1735623105249,3.2078,3344.7,3344.4,0.7814]
[1735623105444,3.2078,3344.7,3344.2,4.67624899]
[1735623105644,0.29944,3344.3,3344.2,4.67624899]
[1735623106051,0.29944,3344.4,3344.1,4.97570899]
[1735623106252,3.50721,3344.7,3344.4,0.29943]
[1735623106450,0.29944,3344.4,3344.2,1.09365]
[1735623106647,0.29944,3344.3,3344.1,4.67624899]
[1735623106848,0.29944,3344.3,3344.0,1.08527]
[1735623107152,0.29945,3344.3,3344.0,1.08527]
[1735623107347,2.99958308,3344.6,3344.0,0.7858]
[1735623107548,0.29947,3344.0,3343.9,3.2078]
[1735623107748,0.29947,3344.1,3343.9,3.2078]
[1735623107958,3.2078,3344.3,3343.9,3.2078]
[1735623108155,3.2078,3344.3,3344.1,0.29946]
[1735623108849,2.99958308,3344.6,3344.1,0.29946]
[1735623109052,0.29945,3344.3,3344.1,0.29946]
[1735623109858,0.29947,3344.1,3343.9,3.2078]
[1735623110655,0.29947,3344.1,3343.8,1.02169]
[1735623111957,0.29948,3343.9,3343.8,0.7222]
[1735623112952,0.29948,3343.9,3343.7,0.7578]
[1735623113257,5.48008308,3344.0,3343.3,4.67624899]
[1735623113461,0.29953,3343.4,3343.3,4.67624899]
[1735623113852,3.9853,3343.6,3343.3,4.67624899]
[1735623114057,3.9853,3343.6,3343.3,4.97577899]
[1735623114058,0.29952,3343.5,3343.3,4.97577899]
[1735623114355,0.29952,3343.5,3343.3,0.29953]
[1735623114657,4.28481,3343.6,3343.3,0.29953]
[1735623114854,3.9853,3343.6,3343.3,0.29953]
[1735623115056,0.29952,3343.5,3343.3,0.29953]
[1735623115359,3.9853,3343.6,3343.3,0.29953]
[1735623115559,4.28481,3343.6,3343.3,0.29953]
[1735623116156,4.28481,3343.6,3343.1,0.7922]
[1735623116359,3.2078,3343.6,3343.5,0.29952]
[1735623116558,3.2078,3343.6,3343.1,0.7922]
[1735623116862,3.2078,3343.6,3343.4,0.29952]
[1735623117756,3.50731,3343.6,3343.4,0.29952]
[1735623118361,3.2078,3343.6,3343.4,0.29952]
[1735623118857,3.2078,3343.6,3343.1,0.7922]
[1735623119055,0.29954,3343.3,3343.1,0.7922]
[1735623119255,1.4857,3343.5,3343.1,0.7922]
[1735623119561,0.29953,3343.4,3343.1,0.7922]
[1735623119855,1.4857,3343.5,3343.1,0.7922]
[1735623120055,0.29954,3343.2,3343.1,0.7922]